[Event "Ceske Budejovice GM 2022"]
[Site "Ceske Budejovice"]
[Date "2022.07.07"]
[Round "7.2"]
[White "Vykouk, Jan"]
[Black "Gazik, Viktor"]
[Result "1-0"]
[ECO "B01"]
[WhiteElo "2476"]
[BlackElo "2544"]
[Annotator "TA"]
[PlyCount "111"]
[EventDate "2022.07.01"]
[EventType "tourn"]
[EventCountry "CZE"]
[SourceTitle "playchess.com"]
[Source "ChessBase"]
[SourceQuality "1"]
[TimeControl "40/5400+30:1800+30"]

{[%evp 19,111,46,41,43,45,43,50,50,44,38,71,45,48,29,16,0,0,0,7,7,8,7,6,6,6,6,6,6,6,4,3,3,3,4,4,3,6,0,0,0,8,0,0,0,4,1,14,6,8,8,8,8,8,8,8,8,103,103,132,132,132,110,187,187,186,178,60,60,64,68,69,69,261,261,260,260,260,260,261,261,261,275,29947,7844,29956,29957,29945,12193,29968,29969,29966,29966,9613,5036]} 1. e4 {[%emt 0:00:03]} d5 {[%emt 0:00:19]} 2. exd5 {[%emt 0:00:06]} Qxd5 {[%emt 0:00:06]} 3. Nc3 {[%emt 0:00:05]} Qa5 {[%emt 0:00:03]} 4. d4 {[%emt 0:00:06]} Nf6 {[%emt 0:00:04]} 5. Nf3 {[%emt 0:00:11]} Bf5 {[%emt 0:01:07]} 6. Ne5 {[%emt 0:00:28]} c6 {[%emt 0:02:02]} 7. Bc4 {[%emt 0:02:58]} e6 {[%emt 0:00:50]} 8. g4 {[%emt 0:01:16]} Bg6 {[%emt 0:00:32]} 9. h4 {[%emt 0:00:08][%cal Bh2h4,Bh4h5][%mdl 32]} Nbd7 {[%emt 0:00:43]} 10. Nxd7 {[%emt 0:00:43]} Nxd7 {[%emt 0:00:08]} 11. h5 $1 {[%emt 0:00:09] B01: Scandinavian Defence.} Be4 {[%emt 0:00:05]} 12. O-O $1 {[%emt 0:00:27][%mdl 4] outshines the older 12.Rh3.} Bd5 {[%emt 0:00:04]} 13. Nxd5 {[%emt 0:00:34] White is slightly better.} cxd5 {[%emt 0:00:03]} 14. Bd3 {[%emt 0:00:08]} Be7 {[%emt 0:10:53]} 15. Qf3 {[%emt 0:02:18] [#]} g6 $146 {[%emt 0:03:04]} ({Predecessor:} 15... h6 16. b3 Nf6 17. Bf4 O-O 18. g5 hxg5 19. Bxg5 Qb4 20. c3 Qd6 21. h6 Ne4 {0-1 (40) Bielecki,P (2010)-Casanovas Cantarero,E (1700) Catalunya 2014}) 16. Bh6 {[%emt 0:06:06]} gxh5 {[%emt 0:20:45]} 17. g5 {[%emt 0:05:43]} Qb6 {[%emt 0:03:52]} 18. c3 {[%emt 0:00:43]} Bxg5 {[%emt 0:23:44]} 19. Bxg5 {[%emt 0:00:31] A strong pair of Bishops.} Rg8 {[%emt 0:00:08]} 20. Qxh5 {[%emt 0:00:26]} h6 $1 {[%emt 0:00:44]} 21. Qxh6 {[%emt 0:02:12]} e5 $1 {[%emt 0:00:10] Strongly threatening ...Qxh6.} 22. Kh2 {[%emt 0:18:06]} Qxh6+ {[%emt 0:03:52]} 23. Bxh6 {[%emt 0:00:04]} Rh8 {[%emt 0:00:22]} 24. Kg3 {[%emt 0:01:29]} Rxh6 {[%emt 0:00:05]} 25. Rh1 {[%emt 0:01:16]} Rxh1 {[%emt 0:00:58]} 26. Rxh1 $11 {[%emt 0:00:52][%mdl 4096] Endgame KRB-KRN} Ke7 {[%emt 0:00:21]} 27. dxe5 {[%emt 0:02:48]} Nxe5 {[%emt 0:00:09]} 28. Be2 {[%emt 0:00:17]} Rd8 {[%emt 0:04:39]} 29. Kf4 {[%emt 0:04:00]} Kf6 {[%emt 0:00:54]} 30. Rd1 {[%emt 0:05:50]} Ke6 {[%emt 0:01:59]} 31. Bf1 {[%emt 0:04:58]} Ng6+ {[%emt 0:06:00]} 32. Ke3 {[%emt 0:04:43]} Ne5 {[%emt 0:01:02]} 33. f4 {[%emt 0:02:29]} Ng4+ {[%emt 0:01:42]} 34. Kd4 {[%emt 0:00:34]} Rh8 {[%emt 0:00:59] Inhibits Bh3.} 35. Bg2 {[%emt 0:01:59]} Nf6 {[%emt 0:00:05]} 36. Re1+ {[%emt 0:02:38]} Kd6 {[%emt 0:06:55]} 37. Rh1 {[%emt 0:03:24]} Rxh1 {[%emt 0:02:28]} (37... Rg8 $11 38. Bf3 Ke6) 38. Bxh1 {[%emt 0:00:05] KB-KN} b6 {[%emt 0:00:51] [#]} 39. f5 $1 {[%emt 0:01:19]} b5 {[%emt 0:02:48]} 40. b3 {[%emt 0:00:47]} Nh5 {[%emt 0:01:34]} (40... a5 $16 {is a better defense.}) 41. Bxd5 $18 {[%emt 0:31:59]} Ng3 {[%emt 0:30:06]} 42. Be4 {[%emt 0:02:48]} Ne2+ {[%emt 0:00:00]} 43. Kd3 {[%emt 0:00:00]} Ng3 {[%emt 0:00:00]} 44. b4 {[%emt 0:00:00]} f6 $1 {[%emt 0:00:00]} 45. a3 {[%emt 0:00:00]} Nf1 $2 {[%emt 0:01:47] This costs Black the game.} (45... Ke5 $1 $14 46. Bc6 a6) 46. Kd4 {[%emt 0:00:00]} Ng3 {[%emt 0:01:00]} 47. Bd3 {[%emt 0:00:00] Against Ne2+. aiming for c4.} Kc6 {[%emt 0:00:01]} 48. c4 {[%emt 0:00:00]} bxc4 {[%emt 0:00:27]} 49. Kxc4 {[%emt 0:00:00] Hoping for a4.} Nh5 {[%emt 0:02:35]} 50. Be4+ {[%emt 0:00:00]} Kd6 $2 {[%emt 0:00:16] [#]} (50... Kb6 $18 51. a4 Kc7) 51. Kb5 $1 {[%emt 0:00:00] Ka6 would kill now.} Kc7 {[%emt 0:00:04]} 52. Ka6 {[%emt 0:00:00]} Kb8 {[%emt 0:00:02]} 53. b5 {[%emt 0:00:00] Intending b6 and mate.} Ng7 {[%emt 0:00:26]} 54. b6 {[%emt 0:00:00]} axb6 {[%emt 0:00:05]} 55. Kxb6 {[%emt 0:00:00]} Ne8 {[%emt 0:00:02]} 56. Kc6 {[%emt 0:00:00] Weighted Error Value: White=0.02 (flawless) /Black=0.66} 1-0

[Event "Ceske Budejovice GM 2022"]
[Site "Ceske Budejovice"]
[Date "2022.07.07"]
[Round "7.3"]
[White "Hollan, Martin"]
[Black "Kraus, Tomas"]
[Result "1/2-1/2"]
[ECO "B50"]
[WhiteElo "2399"]
[BlackElo "2488"]
[Annotator "TA"]
[PlyCount "62"]
[EventDate "2022.07.01"]
[EventType "tourn"]
[EventCountry "CZE"]
[SourceTitle "playchess.com"]
[Source "ChessBase"]
[SourceQuality "1"]
[TimeControl "40/5400+30:1800+30"]

{[%evp 23,62,5,0,-19,0,-26,0,-13,0,0,0,0,0,0,0,0,0,0,0,0,0,0,0,0,0,0,0,0,0,0,0,0,0,0,0,0,26,32,77,54,40]} 1. e4 {[%emt 0:00:03]} c5 {[%emt 0:00:51]} 2. Nf3 {[%emt 0:00:09]} d6 {[%emt 0:00:47]} 3. Nc3 {[%emt 0:00:54]} Nf6 {[%emt 0:01:19]} 4. g3 {[%emt 0:00:23]} Nc6 {[%emt 0:08:17]} 5. Bg2 {[%emt 0:00:10]} g6 {[%emt 0:03:02]} 6. d4 {[%emt 0:00:24]} cxd4 {[%emt 0:00:06]} 7. Nxd4 {[%emt 0:00:06]} Nxd4 {[%emt 0:00:04]} 8. Qxd4 {[%emt 0:00:11]} Bg7 {[%emt 0:00:10]} 9. O-O {[%emt 0:00:43]} O-O {[%emt 0:00:43]} 10. a4 {[%emt 0:00:19]} Be6 {[%emt 0:06:14]} 11. Qb4 {[%emt 0:04:13]} Qc7 {[%emt 0:16:08]} 12. a5 {[%emt 0:05:40]} Nd7 {[%emt 0:06:46] [#]} 13. e5 $146 {[%emt 0:11:59] B70: Sicilian Dragon: 6 g3 and 6 Be2 (without a later Be3).} ({Predecessor:} 13. Bg5 Rfe8 14. Nb5 Qc8 15. Be3 Nc5 16. Rfd1 Bd7 17. Nd4 Qc7 18. Nb5 Qc8 19. Nd4 Qc7 20. Nb5 Qc8 21. Nd4 {½-½ (21) Gunduz,U (2349)-Draskovic,L (2484) Ayvalik 2022}) 13... Bxe5 {[%emt 0:17:42]} 14. Be3 {[%emt 0:26:22]} Bxc3 {[%emt 0:15:33]} 15. bxc3 {[%emt 0:02:43] The position is equal.} Bc4 {[%emt 0:00:43]} 16. Qxb7 {[%emt 0:08:15]} Qxb7 {[%emt 0:01:39]} 17. Bxb7 {[%emt 0:00:07] A strong pair of Bishops.} Bxf1 {[%emt 0:01:40]} 18. Bxa8 {[%emt 0:09:18]} Rxa8 {[%emt 0:00:39]} 19. Kxf1 $11 {[%emt 0:00:16][%mdl 4096] Endgame KRB-KRN} a6 {[%emt 0:00:54]} 20. Rb1 {[%emt 0:02:05]} Rb8 {[%emt 0:04:34] Against Rb7} 21. Rb4 {[%emt 0:08:26]} Kf8 {[%emt 0:00:59]} 22. Rc4 {[%emt 0:06:10]} Nc5 {[%emt 0:00:28]} 23. Bxc5 {[%emt 0:01:05] KRB-KR} Rc8 {[%emt 0:00:18][%mdl 64] [#] Pin} 24. Ke2 {[%emt 0:05:14]} dxc5 {[%emt 0:01:08] KR-KR} 25. Kd3 {[%emt 0:00:26]} e6 {[%emt 0:02:42]} 26. Rh4 {[%emt 0:02:21]} h5 {[%emt 0:00:26]} 27. Kc4 {[%emt 0:01:35]} Ke7 {[%emt 0:01:50]} 28. Rf4 {[%emt 0:01:31]} f5 {[%emt 0:05:48]} 29. Rf3 {[%emt 0:00:14]} Rb8 {[%emt 0:00:24]} 30. Kxc5 {[%emt 0:00:21]} Rb5+ {[%emt 0:00:01]} 31. Kc6 {[%emt 0:00:31]} Rxa5 {[%emt 0:01:43] Weighted Error Value: White=0.02 (flawless) /Black=0.07 (flawless)} 1/2-1/2

[Event "Ceske Budejovice GM 2022"]
[Site "Ceske Budejovice"]
[Date "2022.07.07"]
[Round "7.4"]
[White "Donchenko, Alexander"]
[Black "Omelja, Artem"]
[Result "1-0"]
[ECO "A06"]
[WhiteElo "2640"]
[BlackElo "2478"]
[Annotator "TA"]
[PlyCount "71"]
[EventDate "2022.07.01"]
[EventType "tourn"]
[EventCountry "CZE"]
[SourceTitle "playchess.com"]
[Source "ChessBase"]
[SourceQuality "1"]
[TimeControl "40/5400+30:1800+30"]

{[%evp 18,71,70,59,74,63,71,41,41,37,62,45,52,17,50,52,58,42,95,40,50,37,77,75,70,62,60,30,29,8,69,37,164,113,116,116,116,116,116,117,116,122,121,104,153,149,189,195,223,192,377,360,309,275,734,692]} 1. Nf3 {[%emt 0:00:02]} d5 {[%emt 0:01:15]} 2. g3 {[%emt 0:00:11]} Nf6 {[%emt 0:00:36]} 3. Bg2 {[%emt 0:00:09]} e6 {[%emt 0:00:14]} 4. c4 {[%emt 0:01:22]} Be7 {[%emt 0:00:59]} 5. d4 {[%emt 0:00:14]} O-O {[%emt 0:00:28]} 6. Nc3 {[%emt 0:00:09]} c6 {[%emt 0:01:09]} 7. O-O {[%emt 0:01:01]} b6 {[%emt 0:00:20]} 8. Ne5 {[%emt 0:08:22][%cal Bf3e5,Be5c4,Bc4e3][%mdl 32]} Bb7 {[%emt 0:00:52]} 9. e4 {[%emt 0:01:12]} dxc4 {[%emt 0:00:10]} 10. Nxc4 {[%emt 0:01:43]} b5 {[%emt 0:01:23] E06: Closed Catalan: Early deviations.} 11. Ne3 {[%emt 0:15:22]} Nbd7 {[%emt 0:12:04]} 12. Qc2 {[%emt 0:08:22] [#]} (12. e5 $5 {[%cal Re5f6]} Nd5 13. Nexd5 cxd5 14. Qg4 $14) 12... Qb6 $146 {[%emt 0:05:15] White is slightly better.} ({Predecessor:} 12... Rc8 13. Rd1 Qb6 14. b3 Rfe8 15. Bb2 Bf8 {½-½ (57) Adly,A (2593)-Arab,A (2439) Cairo 2015}) 13. Rd1 {[%emt 0:01:00]} a6 {[%emt 0:02:49]} 14. b3 {[%emt 0:03:25]} Rac8 {[%emt 0:07:08]} 15. Bb2 {[%emt 0:00:45]} Rfd8 {[%emt 0:03:30]} 16. Qe2 {[%emt 0:02:05]} Re8 {[%emt 0:04:45]} 17. Rac1 {[%emt 0:05:31]} Bf8 {[%emt 0:06:30]} (17... c5 $14 18. d5 Rcd8) 18. h4 {[%emt 0:03:23]} (18. e5 $16 Nd5 19. Qd3) 18... e5 {[%emt 0:03:53]} 19. d5 {[%emt 0:06:18]} Bc5 {[%emt 0:05:32]} 20. dxc6 $1 {[%emt 0:00:33]} Bxc6 {[%emt 0:00:16]} 21. Ncd5 {[%emt 0:00:10]} Bxd5 {[%emt 0:00:43]} 22. exd5 {[%emt 0:05:11]} g6 {[%emt 0:04:47]} 23. a3 {[%emt 0:07:10]} e4 {[%emt 0:02:23]} (23... h5 $11) 24. Bh3 {[%emt 0:01:31] Bxf6 is the strong threat. This bishop pair is nice.} (24. d6 $5 {[%cal Rb2f6]}) 24... Rcd8 {[%emt 0:03:43]} (24... Bxe3 $14 25. Qxe3 Rxc1 26. Bxc1 (26. Qxc1 e3 $14) 26... Qxe3 27. Bxe3 Ne5) 25. b4 {[%emt 0:05:15]} ({White should play} 25. Bxd7 $18 Nxd7 26. Ng4) 25... Bxe3 $16 {[%emt 0:01:40]} 26. Qxe3 {[%emt 0:00:06]} ({Reject} 26. fxe3 $6 Qd6 27. Qf2 Ne5 $11) 26... Qxe3 {[%emt 0:00:24]} 27. fxe3 {[%emt 0:00:02]} Ne5 {[%emt 0:00:47] Against Rc6} 28. d6 {[%emt 0:03:05] Strongly threatening Bxe5.} Nfd7 {[%emt 0:01:19]} 29. Bxd7 {[%emt 0:08:07]} Nxd7 {[%emt 0:01:07]} 30. Rc6 $1 {[%emt 0:01:33]} Ra8 {[%emt 0:01:57]} (30... f6 $142) 31. Rc7 {[%emt 0:00:39] White is more active.} Red8 {[%emt 0:02:38] [#]} 32. g4 {[%emt 0:01:36][%cal Bg3g4,Bg4g5][%mdl 32] And now g5 would win.} f6 {[%emt 0:00:14]} 33. g5 {[%emt 0:02:37]} f5 {[%emt 0:01:37]} (33... a5 {was called for.} 34. bxa5 (34. gxf6 axb4 35. axb4 Kf7 $18) 34... Rxa5 35. gxf6 Kf7) 34. h5 {[%emt 0:03:31]} gxh5 {[%emt 0:00:59]} 35. Rd5 {[%emt 0:00:59]} Kf7 $2 {[%emt 0:00:32] [#]} (35... a5 36. bxa5 (36. Rxf5 axb4 37. axb4 Ra6 $18) 36... Rxa5) 36. Re5 $1 {[%emt 0:00:08] Weighted Error Value: White=0.13 (very precise) /Black=0.39} ({Weaker is} 36. Rxf5+ Ke6 37. Rf4 Rg8 $11) 1-0

[Event "Ceske Budejovice GM 2022"]
[Site "Ceske Budejovice"]
[Date "2022.07.07"]
[Round "7.5"]
[White "Malinovsky, Karel"]
[Black "Stefansson, Hannes"]
[Result "0-1"]
[ECO "C68"]
[WhiteElo "2463"]
[BlackElo "2541"]
[Annotator "TA"]
[PlyCount "126"]
[EventDate "2022.07.01"]
[EventType "tourn"]
[EventCountry "CZE"]
[SourceTitle "playchess.com"]
[Source "ChessBase"]
[SourceQuality "1"]
[TimeControl "40/5400+30:1800+30"]

{[%evp 16,126,4,10,4,8,6,0,29,20,27,4,11,0,0,-5,-5,-19,-19,-19,22,0,6,0,24,0,0,-25,-12,-32,-12,-13,0,0,23,-39,-23,-35,-6,-35,-32,-75,-56,-227,-220,-265,-237,-335,-256,-262,-189,-208,-158,-200,-208,-380,-373,-375,-370,-377,-293,-301,-225,-583,-468,-449,-442,-453,-245,-239,-254,-236,-237,-254,-249,-235,-233,-460,-436,-499,-472,-535,-531,-539,-506,-545,-397,-529,-520,-506,-500,-494,-493,-489,-468,-491,-485,-525,-528,-526,-525,-520,-504,-462,-362,-641,-606,-5554,-5600,-5141,-5014,-1918,-1475]} 1. e4 {[%emt 0:00:03] Mikhalchishin,Adrian} e5 {[%emt 0:00:12]} 2. Nf3 {[%emt 0:00:06]} Nc6 {[%emt 0:00:14]} 3. Bb5 {[%emt 0:00:14]} a6 {[%emt 0:00:17]} 4. Bxc6 {[%emt 0:00:26]} dxc6 {[%emt 0:00:33]} 5. O-O {[%emt 0:00:18]} Bd6 {[%emt 0:02:26]} 6. d4 {[%emt 0:01:13]} exd4 {[%emt 0:00:16]} 7. Qxd4 {[%emt 0:00:17]} f6 {[%emt 0:01:08]} 8. Nbd2 {[%emt 0:01:31]} Be6 {[%emt 0:01:56]} 9. b3 {[%emt 0:01:44]} Ne7 {[%emt 0:05:54] C68: Ruy Lopez: Exchange Variation, sidelines.} 10. Nc4 {[%emt 0:02:09]} c5 {[%emt 0:01:46]} 11. Qc3 {[%emt 0:03:29] [#]} Ng6 $146 {[%emt 0:02:16] The position is equal.} ({Predecessor:} 11... Nc6 12. Nxd6+ cxd6 13. Bf4 Qe7 14. Rad1 Rd8 15. Rd2 O-O 16. Rfd1 Ne5 17. h3 Nf7 {1-0 (38) Oleksienko,M (2615)-Kravtsiv,M (2645) Rivne 2016 CBM 176 [Mikhalchishin,Adrian]}) 12. Nxd6+ {[%emt 0:05:48]} cxd6 {[%emt 0:01:10]} 13. Rd1 {[%emt 0:09:53]} O-O {[%emt 0:03:09]} 14. h3 {[%emt 0:02:51]} Qd7 {[%emt 0:03:23]} 15. Be3 {[%emt 0:03:26]} Qc6 {[%emt 0:03:53]} 16. Qd3 {[%emt 0:20:57]} Rad8 {[%emt 0:07:46]} 17. c4 {[%emt 0:01:34]} b5 {[%emt 0:01:28]} 18. cxb5 {[%emt 0:03:58]} axb5 {[%emt 0:01:21]} 19. Qc2 {[%emt 0:00:58]} Qb7 {[%emt 0:06:13]} 20. Rd2 {[%emt 0:06:24]} (20. b4 $5) 20... Rd7 {[%emt 0:02:06]} 21. Rad1 {[%emt 0:02:44]} Rfd8 {[%emt 0:00:22][%cal Bf8d8,Bd8a8,Ba8a2][%mdl 32]} 22. b4 {[%emt 0:05:25]} (22. e5 {is more complex.} Bxh3 23. Ne1 Bg4 24. f3) 22... cxb4 {[%emt 0:05:17]} 23. Nd4 {[%emt 0:00:08]} Bc4 {[%emt 0:01:18]} 24. Qb1 {[%emt 0:01:36]} Ra8 {[%emt 0:17:06]} 25. f3 {[%emt 0:08:44]} ({Better is} 25. Nf5 $11 d5 26. exd5) 25... d5 $15 {[%emt 0:03:50]} 26. Ne6 {[%emt 0:04:22]} Qc6 {[%emt 0:04:57]} (26... Rd6 $5 {[%cal Rd6e6]} 27. Nc5 Qe7 $15) 27. Nc5 {[%emt 0:02:11]} Rdd8 {[%emt 0:00:17][%cal Bd7d8,Bd8c8,Bc8c4][%mdl 32]} 28. Qxb4 {[%emt 0:05:14]} Bxa2 {[%emt 0:01:21]} 29. Rxa2 $2 {[%emt 0:01:36] This move loses the game for White.} Rxa2 $19 {[%emt 0:00:20]} 30. exd5 {[%emt 0:00:03]} Qd6 {[%emt 0:03:02]} ({Weaker is} 30... Rxd5 31. Qb3 Ra3 32. Qxd5+ $15) 31. Qg4 {[%emt 0:02:36] Inhibits Qg3.} (31. Qd4 $142) 31... f5 {[%emt 0:03:03]} 32. Qd4 {[%emt 0:00:20]} Rc8 {[%emt 0:03:05] ...Ne5 is the strong threat.} ({Worse is} 32... Qg3 33. Bf2 Qe5 34. d6 $17) 33. Ne6 {[%emt 0:01:32][%csl Ge6][%cal Rd4g7]} Qe5 {[%emt 0:00:18]} 34. Qxe5 {[%emt 0:01:53]} Nxe5 {[%emt 0:00:07]} 35. Nd4 {[%emt 0:00:35] Inhibits Rcc2.} (35. d6 {keeps fighting.} Nd7 36. Nc5) 35... b4 {[%emt 0:01:16]} 36. d6 {[%emt 0:00:33]} Nd7 {[%emt 0:02:32]} 37. Rb1 {[%emt 0:00:43]} Rc4 {[%emt 0:02:18][%cal Of5f4] Threatens to win with ...f4!} 38. Nxf5 {[%emt 0:00:47]} Rcc2 {[%emt 0:00:42]} 39. Nh4 {[%emt 0:00:41]} (39. Rxb4 {nothing else works.} Rxg2+ 40. Kh1) 39... Rab2 {[%emt 0:02:23]} 40. Ra1 {[%emt 0:00:31]} Kf7 {[%emt 0:05:00]} 41. f4 {[%emt 0:06:31]} Ke6 {[%emt 0:06:34]} (41... Ra2 $142 42. Rb1 Rcb2) 42. Bd4 {[%emt 0:02:46]} Ra2 {[%emt 0:03:47] Hoping for ...Rxa1+.} 43. Rb1 {[%emt 0:02:04]} Rc4 {[%emt 0:00:20]} ({But not} 43... Kxd6 $2 44. Rxb4 g6 45. Kh2) 44. Bxg7 {[%emt 0:02:59]} Rxf4 {[%emt 0:00:08]} 45. Nf3 {[%emt 0:01:09]} Kxd6 {[%emt 0:02:32]} 46. Bh6 $2 {[%emt 0:02:43] [#]} (46. Bd4) 46... Re4 $1 {[%emt 0:00:55]} 47. Nd2 {[%emt 0:01:03] [#]} Re6 {[%emt 0:00:58]} 48. Bf4+ {[%emt 0:01:12]} Kc5 {[%emt 0:00:08]} 49. Rc1+ {[%emt 0:00:30]} Kb6 {[%emt 0:02:22]} 50. Rc4 {[%emt 0:03:04]} Rb2 {[%emt 0:02:26]} 51. Rc8 {[%emt 0:04:18] Strongly threatening Nc4+.} Kb5 {[%emt 0:00:30]} 52. Rd8 {[%emt 0:01:54]} Nb6 {[%emt 0:01:01]} 53. Nf3 {[%emt 0:00:33] And now Nd4+ would win.} Rg6 {[%emt 0:00:27]} 54. Nh4 {[%emt 0:01:33]} Rg7 {[%emt 0:02:06]} 55. Be3 {[%emt 0:01:13]} Rb7 {[%emt 0:05:34] Inhibits Rb8.} 56. Nf5 {[%emt 0:00:51]} Nc4 {[%emt 0:01:27]} 57. Nd4+ {[%emt 0:00:22]} Ka6 {[%emt 0:00:19]} 58. Bf2 {[%emt 0:00:52]} Rf7 {[%emt 0:00:55]} 59. Nf3 {[%emt 0:00:23]} Kb7 {[%emt 0:01:32] Against Rb8+} 60. Bg3 $2 {[%emt 0:01:17]} (60. Rd5) 60... Ne3 {[%emt 0:01:15] Black is clearly winning.} 61. Nd2 {[%emt 0:01:02]} Rg7 {[%emt 0:02:49]} 62. Kf2 {[%emt 0:01:38] [#]} Rxg3 $1 {[%emt 0:00:57][%mdl 512]} 63. Kxg3 {[%emt 0:00:22] [#]} Rxd2 $1 {[%emt 0:00:05][%mdl 512] Weighted Error Value: White=0.52/Black=0.19 (very precise)} 0-1

[Event "Ceske Budejovice GM 2022"]
[Site "Ceske Budejovice"]
[Date "2022.07.08"]
[Round "8.1"]
[White "Sahidi, Samir"]
[Black "Stefansson, Hannes"]
[Result "1-0"]
[ECO "E06"]
[WhiteElo "2462"]
[BlackElo "2541"]
[Annotator "TA"]
[PlyCount "89"]
[EventDate "2022.07.01"]
[EventType "tourn"]
[EventCountry "CZE"]
[SourceTitle "playchess.com"]
[Source "ChessBase"]
[SourceQuality "1"]
[TimeControl "40/5400+30:1800+30"]

{[%evp 17,89,12,18,16,10,0,0,0,0,-8,-5,-8,7,7,8,0,11,0,12,0,21,33,23,27,43,35,32,52,102,7,18,15,20,5,45,38,37,37,41,37,77,66,70,62,70,62,65,54,54,59,54,66,150,131,109,184,196,183,201,151,264,152,277,270,289,289,489,489,806,891,793,612,29971,29972]} 1. d4 {[%emt 0:00:09]} Nf6 {[%emt 0:00:22]} 2. c4 {[%emt 0:00:24]} e6 {[%emt 0:00:23]} 3. Nf3 {[%emt 0:00:37]} d5 {[%emt 0:00:33]} 4. g3 {[%emt 0:00:40]} Be7 {[%emt 0:00:38]} 5. Bg2 {[%emt 0:01:30]} O-O {[%emt 0:00:47]} 6. O-O {[%emt 0:02:02]} dxc4 {[%emt 0:00:17]} 7. Qc2 {[%emt 0:00:37]} c6 {[%emt 0:00:57]} 8. Qxc4 {[%emt 0:04:39]} b5 {[%emt 0:00:28]} 9. Qc2 {[%emt 0:00:34]} Bb7 {[%emt 0:00:28]} 10. Rd1 {[%emt 0:02:23] D30: Queen's Gambit Declined: Systems without Nc3.} Nbd7 {[%emt 0:01:03]} 11. Ne5 {[%emt 0:08:28]} Nxe5 {[%emt 0:00:44]} 12. dxe5 {[%emt 0:00:07] The position is equal.} Nd5 {[%emt 0:00:52]} 13. Nc3 {[%emt 0:01:31]} Qb8 {[%emt 0:06:05]} 14. f4 {[%emt 0:03:11] [#]} Rd8 $146 {[%emt 0:02:52]} ({Predecessor:} 14... a5 15. Nxd5 cxd5 16. Be3 Rc8 17. Qd2 Rc4 18. Rac1 Bb4 19. Qd3 Qc7 20. b3 Rc3 21. Rxc3 Bxc3 22. Qxb5 {½-½ (45) Delorme,A (2518)-Hammer,J (2628) Helsingor 2017}) 15. Nxd5 {[%emt 0:09:45]} cxd5 {[%emt 0:00:16]} 16. Be3 {[%emt 0:00:34]} Rc8 {[%emt 0:00:39]} 17. Qd3 {[%emt 0:01:38]} a6 {[%emt 0:05:51]} 18. Bd4 {[%emt 0:03:47]} Qc7 {[%emt 0:02:57]} 19. f5 {[%emt 0:06:51]} Bc5 {[%emt 0:02:03]} 20. e3 {[%emt 0:05:36]} Bxd4 {[%emt 0:00:35]} 21. exd4 {[%emt 0:00:11]} exf5 {[%emt 0:02:20]} 22. Qxf5 {[%emt 0:03:09]} Qc2 {[%emt 0:01:00]} (22... Qb6 $14) 23. Rf1 {[%emt 0:02:17]} (23. Bh3 $16) 23... Qxf5 $11 {[%emt 0:04:27]} 24. Rxf5 {[%emt 0:00:07]} a5 {[%emt 0:02:05]} 25. a3 {[%emt 0:03:39]} Ra6 {[%emt 0:01:15]} 26. Bf1 {[%emt 0:03:24] Strongly threatening a4.} Rb6 {[%emt 0:01:35]} 27. b4 {[%emt 0:00:33]} a4 {[%emt 0:01:09]} 28. Rf2 {[%emt 0:03:04]} Rc3 {[%emt 0:01:58] [#]} 29. Raa2 $1 {[%emt 0:01:17]} Ba6 {[%emt 0:01:32]} 30. Rfc2 {[%emt 0:12:53]} Rbc6 {[%emt 0:01:07]} 31. Rxc3 {[%emt 0:00:14]} Rxc3 $14 {[%emt 0:00:06][%mdl 4096] Endgame KRB-KRB} 32. Kf2 {[%emt 0:00:08]} Kf8 $1 {[%emt 0:01:45]} 33. Be2 {[%emt 0:01:05]} Ke7 {[%emt 0:09:36]} 34. Ke1 $1 {[%emt 0:00:29]} Rc7 {[%emt 0:03:41]} ({Black should play} 34... Kd8 $14) 35. Kd2 $16 {[%emt 0:00:29]} h6 {[%emt 0:03:31]} 36. Ra1 {[%emt 0:02:08]} (36. h3 $16) 36... Rc8 {[%emt 0:01:08]} 37. h4 {[%emt 0:00:48][%cal Bh2h4,Bh4g5][%mdl 32]} Rc7 {[%emt 0:00:31]} 38. g4 {[%emt 0:01:44]} Rc8 {[%emt 0:01:29]} (38... f6 $16) 39. Rg1 {[%emt 0:02:08]} (39. g5 $18) 39... Rc6 {[%emt 0:02:22] [#]} (39... f6 $16 {might work better.} 40. exf6+ gxf6) 40. g5 $1 $18 {[%emt 0:00:25]} hxg5 {[%emt 0:00:57]} 41. hxg5 {[%emt 0:31:44]} ({Weaker is} 41. Rxg5 Kf8 42. Rg3 Rh6 $16) 41... g6 $2 {[%emt 0:43:34]} (41... Ke6 42. Rh1 Kf5 43. Bd3+ Kxg5) 42. Rf1 {[%emt 0:09:05]} Kf8 {[%emt 0:05:06]} (42... Rc7 $142 43. Rf6 Bc8 44. Bxb5 Be6) 43. Rf6 {[%emt 0:00:00]} Re6 {[%emt 0:00:00]} 44. Bg4 {[%emt 0:00:00]} Rxf6 {[%emt 0:00:00]} 45. exf6 {[%emt 0:00:00] Weighted Error Value: White=0.11 (very precise) /Black=0.40} 1-0